bitfinex/quotes_BTCUSD_20260104
["timestamp","ask_amount","ask_price","bid_price","bid_amount"]
[1767548609575,0.05474532,91332.0,91331.0,0.04741522]
[1767548611755,0.01094906,91332.0,91328.0,0.04671623]
[1767548611953,0.05474712,91329.0,91328.0,0.04671623]
[1767548612132,0.05374812,91329.0,91328.0,0.04671623]
[1767548612514,0.05474652,91330.0,91328.0,0.04671623]
[1767548613153,0.0656988,91326.0,91321.0,0.04671623]
[1767548613356,0.05474952,91325.0,91323.0,0.04671623]
[1767548613574,0.01095002,91324.0,91323.0,0.04671623]
[1767548613753,0.01094978,91326.0,91323.0,0.04671623]
[1767548614268,0.06569831,91328.0,91324.0,0.0496227]
[1767548614896,0.01094966,91327.0,91324.0,0.0496227]
[1767548615053,0.06569826,91327.0,91324.0,0.0496227]
[1767548615247,0.01094954,91328.0,91324.0,0.0496227]
[1767548615520,0.01094942,91329.0,91325.0,0.0605726]
[1767548615649,0.06569631,91330.0,91325.0,0.0605726]
[1767548616969,0.06569631,91330.0,91326.0,0.06057248]
[1767548617164,0.0109493,91330.0,91326.0,0.11532137]
[1767548617390,0.0109493,91330.0,91327.0,0.0496227]
[1767548619901,0.06569592,91330.0,91327.0,0.0495784]
[1767548620482,0.06569592,91330.0,91327.0,0.0495341]
[1767548621091,0.01094906,91332.0,91328.0,0.0496227]
[1767548621092,0.06569443,91332.0,91328.0,0.0496227]
[1767548621299,0.05474637,91331.0,91328.0,0.0496227]
[1767548621800,0.06569443,91332.0,91328.0,0.0496227]
[1767548627127,0.01094906,91332.0,91329.0,0.0496227]
[1767548627476,0.06569448,91332.0,91329.0,0.04564695]
[1767548627689,0.06569447,91332.0,91329.0,0.0409786]
[1767548627889,0.05474652,91330.0,91329.0,0.0399796]
[1767548628039,0.05474608,91331.0,91329.0,0.0399796]
[1767548629232,0.05474652,91330.0,91329.0,0.0399796]
[1767548629840,0.05474608,91331.0,91329.0,0.0399796]
[1767548630171,0.05474652,91330.0,91326.0,0.01094978]
[1767548630372,0.0109493,91330.0,91326.0,0.11532129]
[1767548630577,0.06569526,91331.0,91327.0,0.0496227]
[1767548631745,0.01094906,91332.0,91327.0,0.10437053]
[1767548632045,0.01094918,91331.0,91327.0,0.0606157]
[1767548632244,0.06569513,91331.0,91327.0,0.0606157]
[1767548632563,0.01094918,91331.0,91327.0,0.0606157]
[1767548632888,0.0656954,91331.0,91327.0,0.04966604]
[1767548633143,0.0656953,91331.0,91327.0,0.04966604]
[1767548633846,0.0656953,91331.0,91327.0,0.04952462]
[1767548634050,0.0656953,91331.0,91327.0,0.06047428]
[1767548634252,0.0656953,91331.0,91327.0,0.06033287]
[1767548634612,0.0656953,91331.0,91327.0,0.04938321]
[1767548635208,0.0656953,91331.0,91327.0,0.06033287]
[1767548635661,0.01094918,91331.0,91327.0,0.11508116]
[1767548635820,0.0656948,91332.0,91327.0,0.11508116]
[1767548636003,0.01094918,91331.0,91327.0,0.06033287]
[1767548636268,0.06569512,91331.0,91327.0,0.06033287]
[1767548636480,0.06569619,91330.0,91327.0,0.04938321]
[1767548638671,0.05474757,91329.0,91327.0,0.04938321]
[1767548640048,0.06569619,91330.0,91327.0,0.04938321]
[1767548640987,0.06569619,91330.0,91327.0,0.0493379]
[1767548642521,0.01095002,91324.0,91318.0,0.01095074]
[1767548642755,0.06570016,91324.0,91321.0,0.02188]
[1767548642952,0.01095002,91324.0,91321.0,0.02188]
[1767548643180,0.06570024,91324.0,91319.0,0.06618724]
[1767548643374,0.0657018,91322.0,91319.0,0.00048362]
[1767548644191,0.06570096,91323.0,91319.0,0.00048362]
[1767548644409,0.06570018,91324.0,91319.0,0.01143424]
[1767548645068,0.01095014,91323.0,91319.0,0.01143424]
[1767548646031,0.05780371,91323.0,91319.0,0.01143424]
[1767548646911,0.11255489,91323.0,91319.0,0.00048362]
[1767548648187,0.04685357,91323.0,91319.0,0.01143424]
[1767548649453,0.01095002,91324.0,91323.0,0.000999]
[1767548649607,0.06569986,91325.0,91323.0,0.000999]
[1767548650004,0.06569986,91325.0,91320.0,0.06570285]
[1767548650218,0.0109499,91325.0,91320.0,0.06570285]
[1767548650419,0.0109499,91325.0,91319.0,0.06618724]
[1767548650420,0.01095002,91324.0,91319.0,0.06618724]
[1767548650623,0.06569992,91325.0,91320.0,0.06570298]
[1767548650880,0.0109499,91325.0,91320.0,0.06570298]
[1767548652088,0.06569914,91326.0,91321.0,0.06570229]
[1767548652506,0.065698,91327.0,91322.0,0.01095026]
[1767548652646,0.065698,91327.0,91321.0,0.06570229]
[1767548653264,0.05474922,91326.0,91321.0,0.06570229]
[1767548653461,0.0109499,91325.0,91320.0,0.06570293]
[1767548653706,0.06569942,91325.0,91320.0,0.06570293]
[1767548653961,0.01095002,91324.0,91320.0,0.0109505]
[1767548654417,0.06569942,91325.0,91320.0,0.0109505]
[1767548654591,0.06570028,91324.0,91319.0,0.11573304]
[1767548654995,0.06570028,91324.0,91319.0,0.06618732]
[1767548655329,0.01095002,91324.0,91320.0,0.0109505]
[1767548655736,0.06570019,91324.0,91319.0,0.06618732]
[1767548656133,0.06570018,91324.0,91319.0,0.06618732]
[1767548656296,0.0109499,91325.0,91320.0,0.06570289]
[1767548656694,0.04685357,91324.0,91320.0,0.01570289]
[1767548656917,0.0109499,91325.0,91320.0,0.01570289]
[1767548657077,0.0109499,91325.0,91321.0,0.04954572]
[1767548657288,0.0109499,91325.0,91321.0,0.0604961]
[1767548657709,0.06569749,91329.0,91325.0,0.000999]
[1767548657913,0.06569665,91329.0,91325.0,0.000999]
[1767548658114,0.05474773,91328.0,91323.0,0.11524606]
[1767548658418,0.01094966,91327.0,91323.0,0.06049586]
[1767548659475,0.06569729,91328.0,91323.0,0.11524615]
[1767548659689,0.01094954,91328.0,91323.0,0.11524615]
[1767548660054,0.06569768,91328.0,91323.0,0.06049586]
[1767548660256,0.06569768,91328.0,91324.0,0.04954572]
[1767548660469,0.06569763,91328.0,91324.0,0.04954572]
[1767548661127,0.01094954,91328.0,91324.0,0.06049574]
[1767548661327,0.01094954,91328.0,91324.0,0.04954572]
[1767548661656,0.01094966,91327.0,91324.0,0.04954572]
[1767548661900,0.06569739,91328.0,91324.0,0.04954572]
[1767548663851,0.01094954,91328.0,91324.0,0.06049574]
[1767548664901,0.01094966,91327.0,91324.0,0.04954572]
[1767548665043,0.06569805,91327.0,91324.0,0.04954572]
[1767548666884,0.01094966,91327.0,91324.0,0.04954572]
[1767548667944,0.06569798,91327.0,91324.0,0.04954572]
[1767548668371,0.01094966,91327.0,91324.0,0.04954572]
[1767548668571,0.06569816,91327.0,91324.0,0.04954572]
[1767548669515,0.05474895,91326.0,91324.0,0.04954572]
[1767548672442,0.06569613,91330.0,91326.0,0.0469921]
[1767548672583,0.01094942,91329.0,91326.0,0.0469921]
[1767548672801,0.06569669,91329.0,91326.0,0.0459931]
[1767548673157,0.0109493,91330.0,91326.0,0.0459931]
[1767548673411,0.06569528,91331.0,91330.0,0.000999]
[1767548673986,0.06569585,91330.0,91326.0,0.05694288]
[1767548674501,0.06569528,91331.0,91326.0,0.05694288]
[1767548675383,0.06569596,91330.0,91326.0,0.0459931]
[1767548676095,0.0109493,91330.0,91326.0,0.05694288]
[1767548676388,0.06569528,91331.0,91327.0,0.04529562]
[1767548677708,0.06569518,91331.0,91327.0,0.04529562]
[1767548677908,0.06569518,91331.0,91326.0,0.06569866]
[1767548678137,0.00327903,91330.0,91326.0,0.01094978]
[1767548678476,0.00327903,91329.0,91326.0,0.01094978]
[1767548680959,0.00327903,91329.0,91325.0,0.06569907]
[1767548681576,0.00327903,91329.0,91326.0,0.01094978]
[1767548682330,0.01094906,91332.0,91326.0,0.01094978]
[1767548683244,0.06569524,91331.0,91327.0,0.04529562]
[1767548683560,0.01094918,91331.0,91327.0,0.05624528]
[1767548688107,0.0109493,91330.0,91327.0,0.04529562]
[1767548689512,0.06569634,91330.0,91327.0,0.04529562]
[1767548689808,0.05474725,91329.0,91327.0,0.04529562]
[1767548694677,0.05474725,91329.0,91327.0,0.04520498]
[1767548701252,0.06569634,91330.0,91327.0,0.04520498]
[1767548701440,0.05474722,91329.0,91327.0,0.04520498]
[1767548702087,0.06569634,91330.0,91327.0,0.04520498]
[1767548702293,0.06469734,91330.0,91327.0,0.04520498]
[1767548702913,0.0099503,91330.0,91327.0,0.04520498]
[1767548703041,0.06569492,91332.0,91327.0,0.05615464]
[1767548703242,0.01094906,91332.0,91328.0,0.04856185]
[1767548703775,0.01094906,91332.0,91328.0,0.05951139]
[1767548703970,0.06569444,91332.0,91328.0,0.05951139]
[1767548704178,0.08757379,91333.0,91328.0,0.11425899]
[1767548704356,0.06569446,91332.0,91328.0,0.05951139]
[1767548704543,0.01094906,91332.0,91328.0,0.04856185]
[1767548704753,0.06569441,91332.0,91328.0,0.04856185]
[1767548704996,0.06569521,91331.0,91328.0,0.04856185]
[1767548705172,0.03282894,91333.0,91328.0,0.04856185]
[1767548705173,0.02188,91333.0,91328.0,0.04856185]
[1767548705361,0.01094822,91339.0,91333.0,0.04856185]
[1767548705591,0.02188,91340.0,91339.0,0.10330297]
[1767548705832,0.0109475,91345.0,91341.0,0.04856185]
[1767548706034,0.0109475,91345.0,91341.0,0.04756285]
[1767548706453,0.01094762,91344.0,91341.0,0.04756285]
[1767548706663,0.05473933,91342.0,91341.0,0.04756285]
[1767548708214,0.01094846,91337.0,91334.0,0.04856185]
[1767548708592,0.05474108,91340.0,91334.0,0.04856185]
[1767548708593,0.01094822,91339.0,91338.0,0.04856185]
[1767548708787,0.06568956,91339.0,91338.0,0.04856185]
[1767548709818,0.00994922,91339.0,91338.0,0.04856185]
[1767548710019,0.05474108,91340.0,91338.0,0.04856185]
[1767548711700,0.06568803,91341.0,91338.0,0.04856185]
[1767548711893,0.05474074,91340.0,91338.0,0.04756285]
[1767548712116,0.06568803,91341.0,91338.0,0.04756285]
[1767548712334,0.01094798,91341.0,91338.0,0.04756285]
[1767548712659,0.05474112,91339.0,91338.0,0.04756285]
[1767548713421,0.054741,91340.0,91338.0,0.04756285]
[1767548714697,0.0099491,91340.0,91336.0,0.01094858]
[1767548714900,0.00986049,91340.0,91336.0,0.05951043]
[1767548715709,0.01094798,91341.0,91337.0,0.11425261]
[1767548715908,0.06568828,91341.0,91337.0,0.04856185]
[1767548716333,0.06568828,91341.0,91337.0,0.04851653]
[1767548716989,0.0109481,91340.0,91337.0,0.04851653]
[1767548717182,0.06568828,91341.0,91337.0,0.04851653]
[1767548718088,0.0109481,91340.0,91337.0,0.04851653]
[1767548718632,0.06568866,91340.0,91337.0,0.04851653]
[1767548719286,0.05574133,91337.0,91334.0,0.04856185]
[1767548719487,0.000999,91337.0,91334.0,0.04856185]
[1767548719693,0.01194746,91337.0,91334.0,0.04856185]
[1767548719989,0.01094846,91337.0,91333.0,0.01094894]
[1767548720188,0.01094846,91337.0,91333.0,0.04856185]
[1767548720392,0.01094846,91337.0,90189.0,0.0455062]
[1767548720393,0.01094906,91332.0,91328.0,0.02188]
[1767548720551,0.000999,91328.0,91326.0,0.04856185]
[1767548720738,0.01094942,91329.0,91326.0,0.04856185]
[1767548720946,0.06569565,91331.0,91326.0,0.01094978]
[1767548721377,0.01094894,91333.0,91328.0,0.01094954]
[1767548721579,0.0547346,91330.0,91329.0,0.00059677]
[1767548721901,0.0537356,91330.0,91329.0,0.04915862]
[1767548722243,0.0537356,91330.0,91329.0,0.00059677]
[1767548724757,0.0537356,91330.0,91329.0,0.04915862]
[1767548728159,0.01094966,91327.0,91318.0,0.01095074]
[1767548728334,0.01094966,91327.0,91320.0,0.0109505]
[1767548728335,0.06569924,91326.0,91320.0,0.0109505]
[1767548728543,0.01095002,91324.0,91319.0,0.00048362]
[1767548728881,0.06570211,91322.0,91319.0,0.00048362]
[1767548729505,0.01095014,91323.0,91319.0,0.00048362]
[1767548729709,0.01095014,91323.0,91319.0,0.01143424]
[1767548731161,0.09424537,91322.0,91319.0,0.06618731]
[1767548731385,0.09364837,91322.0,91319.0,0.06618731]
[1767548732005,0.09364837,91322.0,91314.0,0.22997484]
[1767548732006,0.09364837,91322.0,91314.0,0.20135206]
[1767548732161,0.09364837,91322.0,91319.0,0.05475307]
[1767548732364,0.09364837,91322.0,91319.0,0.06570369]
[1767548733339,0.09355976,91322.0,91318.0,0.06570441]
[1767548733535,0.000999,91319.0,91318.0,0.06570441]
[1767548733745,0.09355976,91322.0,91318.0,0.06570441]
[1767548734174,0.09355976,91322.0,91318.0,0.01095074]
[1767548734588,0.09355976,91322.0,91318.0,0.06570436]
[1767548735418,0.09355976,91322.0,91319.0,0.01095062]
[1767548736020,0.09355976,91322.0,91318.0,0.06570436]
[1767548737041,0.10451002,91322.0,91318.0,0.01095074]
[1767548737957,0.09355976,91322.0,91319.0,0.01095062]
[1767548738151,0.09355976,91322.0,91318.0,0.01095074]
[1767548738469,0.09347176,91322.0,91318.0,0.06570431]
[1767548739375,0.09347176,91322.0,91319.0,0.01095062]
[1767548739737,0.09347176,91322.0,91319.0,0.06570347]
[1767548739939,0.09347176,91322.0,91320.0,0.05475196]
[1767548740484,0.09347176,91322.0,91319.0,0.06570347]
[1767548740661,0.09347176,91322.0,91319.0,0.11446851]
[1767548740919,0.09347176,91322.0,91320.0,0.05475232]
[1767548742083,0.000999,91320.0,91319.0,0.05971566]
[1767548742295,0.000999,91320.0,91318.0,0.11446921]
[1767548742493,0.09347176,91322.0,91319.0,0.05971566]
[1767548742693,0.09347176,91322.0,91319.0,0.06570315]
[1767548742922,0.09347176,91322.0,91319.0,0.01095062]
[1767548745016,0.09347176,91322.0,91319.0,0.06570347]
[1767548745219,0.09347176,91322.0,91318.0,0.06570394]
[1767548745780,0.09347176,91322.0,91319.0,0.01095062]
[1767548745993,0.09347176,91322.0,91320.0,0.0547525]
[1767548746159,0.09347176,91322.0,91319.0,0.06570359]
[1767548746306,0.01095014,91323.0,91319.0,0.06570359]
[1767548747159,0.01095026,91322.0,91318.0,0.01095074]
[1767548748527,0.0537356,91321.0,91318.0,0.01095074]
[1767548749242,0.0537356,91321.0,91318.0,0.06570441]
[1767548749364,0.0537356,91321.0,91318.0,0.01095074]
[1767548752062,0.0537356,91321.0,91318.0,0.06570396]
[1767548752442,0.0537356,91321.0,91319.0,0.05475259]
[1767548753870,0.0537356,91321.0,91320.0,0.05475251]
[1767548754371,0.0537356,91321.0,91319.0,0.05475259]
[1767548755317,0.0537356,91321.0,91318.0,0.06570443]
[1767548755449,0.000999,91319.0,91318.0,0.06570443]
[1767548755816,0.0537356,91321.0,91319.0,0.05475297]
[1767548758583,0.0537356,91321.0,91320.0,0.05475251]
[1767548759239,0.0537356,91321.0,91319.0,0.05475297]
[1767548761785,0.04843757,91320.0,91318.0,0.06570329]
[1767548761983,0.04843757,91320.0,91319.0,0.05475259]
[1767548762280,0.04843757,91320.0,91318.0,0.06570329]
[1767548762281,0.000999,91319.0,91318.0,0.06570329]
[1767548762645,0.0537356,91321.0,91319.0,0.05475282]
[1767548762841,0.0537356,91321.0,91320.0,0.05475251]
[1767548763646,0.00048361,91324.0,91323.0,0.05475071]
[1767548764179,0.00048361,91324.0,91322.0,0.05475117]
[1767548764497,0.000999,91323.0,91314.0,0.15212255]
[1767548764660,0.000999,91323.0,91322.0,0.05475131]
[1767548764860,0.00048361,91324.0,91322.0,0.05475131]
[1767548765309,0.00048361,91324.0,91322.0,0.10005062]
[1767548765509,0.00048361,91324.0,91321.0,0.01095038]
[1767548765908,0.00048361,91324.0,91321.0,0.05624969]
[1767548766138,0.00048361,91324.0,91323.0,0.05475071]
[1767548766506,0.00048361,91324.0,91323.0,0.04052471]
[1767548769182,0.00048361,91324.0,91323.0,0.04048371]
[1767548769732,0.00048361,91324.0,91322.0,0.05475131]
[1767548771029,6.1e-07,91324.0,91323.0,0.10005002]
[1767548771249,4.334e-05,91327.0,91324.0,0.01095002]
[1767548771459,0.06569636,91330.0,91325.0,0.0109499]
[1767548771698,0.01094942,91329.0,91324.0,0.0657001]
[1767548771901,0.000483,91325.0,91324.0,0.01095002]
[1767548772057,0.06569636,91330.0,91324.0,0.01095002]
[1767548772380,0.01094942,91329.0,91325.0,0.0109499]
[1767548772523,0.01094942,91329.0,91324.0,0.06570014]
[1767548772724,0.01086079,91329.0,91324.0,0.06570014]
[1767548773172,0.03872045,91328.0,91324.0,0.02697969]
[1767548773378,0.03872045,91328.0,91321.0,0.01095038]
[1767548773379,0.000438,91324.0,91322.0,0.01095026]
[1767548773541,0.000438,91324.0,91322.0,0.06570155]
[1767548773744,0.06569769,91328.0,91323.0,0.01095014]
[1767548774731,0.01094978,91326.0,91320.0,0.06570286]
[1767548774955,0.01094978,91326.0,91321.0,0.06570213]
[1767548775154,0.01094978,91326.0,91321.0,0.01095038]
[1767548775767,0.06569882,91326.0,91321.0,0.01095038]
[1767548775968,0.0109499,91325.0,91321.0,0.04529931]
[1767548776145,0.01094966,91327.0,91323.0,0.04529931]
[1767548776345,0.01094966,91327.0,91323.0,0.04486131]
[1767548776596,0.06569847,91327.0,91323.0,0.04486131]
[1767548777228,0.05474898,91326.0,91323.0,0.04486131]
[1767548777383,0.06569876,91326.0,91323.0,0.04486131]
[1767548778384,0.01094978,91326.0,91323.0,0.04486131]
[1767548779584,0.06569847,91327.0,91323.0,0.04486131]
[1767548779793,0.01086103,91327.0,91323.0,0.04486131]
[1767548780833,0.065697,91330.0,91324.0,0.04529931]
[1767548780990,0.05474645,91331.0,91328.0,0.04529931]
[1767548781431,0.06569563,91331.0,91328.0,0.04529931]
[1767548782336,0.05474684,91330.0,91328.0,0.04529931]
[1767548783033,0.06569563,91331.0,91328.0,0.04529931]
[1767548783245,0.05474655,91330.0,91328.0,0.04529931]
[1767548783564,0.05474655,91330.0,91325.0,0.0109499]
[1767548783565,0.03282906,91332.0,91330.0,0.04629831]
[1767548783759,0.08757487,91332.0,91330.0,0.04629831]
[1767548783955,0.08757487,91332.0,91330.0,0.04529931]
[1767548784211,0.0109493,91330.0,91326.0,0.04529931]
[1767548784369,0.06569611,91330.0,91326.0,0.04529931]
[1767548784916,0.01094942,91329.0,91326.0,0.04529931]
[1767548785115,0.0656966,91329.0,91326.0,0.04529931]
[1767548788369,0.01094942,91329.0,91326.0,0.04529931]
[1767548788527,0.06569611,91330.0,91326.0,0.04529931]
[1767548788933,0.06569525,91331.0,91326.0,0.05624909]
[1767548789137,0.02188,91332.0,91331.0,0.04629831]
[1767548789448,0.01094858,91336.0,91332.0,0.04529931]
[1767548789662,0.0109487,91335.0,91332.0,0.04529931]
[1767548789856,0.0656915,91336.0,91332.0,0.04529931]
[1767548790029,0.06569228,91335.0,91332.0,0.04529931]
[1767548790449,0.06560372,91335.0,91332.0,0.04529931]
[1767548790625,0.06553502,91335.0,91332.0,0.04529931]
[1767548791670,0.06569152,91336.0,91332.0,0.04529931]
[1767548791825,0.01094858,91336.0,91332.0,0.04529931]
[1767548792029,0.06569164,91336.0,91332.0,0.04529931]
[1767548792412,0.01094846,91337.0,91333.0,0.04997948]
[1767548792965,0.05469501,91337.0,91333.0,0.04997948]
[1767548793108,0.01094858,91336.0,91333.0,0.04997948]
[1767548794432,0.06569135,91337.0,91333.0,0.04997948]
[1767548794746,0.08757054,91338.0,91333.0,0.06092842]
[1767548794899,0.08757054,91338.0,91334.0,0.04689935]
[1767548796020,0.01094846,91337.0,91334.0,0.04689935]
[1767548796538,0.08757054,91338.0,91334.0,0.04689935]
[1767548797373,0.01094846,91337.0,91334.0,0.04689935]
[1767548797842,0.08757054,91338.0,91334.0,0.04689935]
[1767548798745,0.08757054,91338.0,91334.0,0.04590035]
[1767548798746,0.01094846,91337.0,91334.0,0.04590035]
[1767548799366,0.08757054,91338.0,91334.0,0.04590035]
[1767548799571,0.08757054,91338.0,91333.0,0.06569363]
[1767548799727,0.023317,91337.0,91333.0,0.06569363]
[1767548799897,0.023317,91336.0,91332.0,0.0656939]
[1767548800110,0.023317,91335.0,91332.0,0.01094906]
[1767548801425,0.023317,91335.0,91331.0,0.065695]
[1767548801593,0.023317,91334.0,91330.0,0.0109493]
[1767548801804,0.01094882,91334.0,91331.0,0.04689935]
[1767548801961,0.01094882,91334.0,91330.0,0.05784865]
[1767548802162,0.06569232,91335.0,91330.0,0.05784865]
[1767548802794,0.0109487,91335.0,91331.0,0.04689935]
[1767548802993,0.06569196,91336.0,91331.0,0.05784853]
[1767548803389,0.06569091,91337.0,91333.0,0.04689935]
[1767548804114,0.01094858,91336.0,91333.0,0.04689935]
[1767548805447,0.06569162,91336.0,91333.0,0.04689935]
[1767548805719,0.01094858,91336.0,91333.0,0.04685935]
[1767548805917,0.05474353,91335.0,91333.0,0.04685935]
[1767548806082,0.06569197,91336.0,91333.0,0.04685935]
[1767548809606,0.01094858,91336.0,91333.0,0.04685935]
[1767548810108,0.0656917,91336.0,91333.0,0.04685935]
[1767548810304,0.01094858,91336.0,91333.0,0.04685935]
[1767548811728,0.06569157,91336.0,91333.0,0.04685935]
[1767548812541,0.06569185,91336.0,91333.0,0.04685935]
[1767548813287,0.05474364,91335.0,91333.0,0.04685935]
[1767548813687,0.06569185,91336.0,91333.0,0.04685935]
[1767548814177,0.06569185,91336.0,91333.0,0.0460646]
[1767548815083,0.05474353,91335.0,91333.0,0.0460646]
[1767548815494,0.06569185,91336.0,91333.0,0.0460646]
[1767548819447,0.00994958,91336.0,91333.0,0.0460646]
[1767548819664,0.06569086,91337.0,91333.0,0.0460646]
[1767548819864,0.06569106,91337.0,91333.0,0.0460646]
[1767548820039,0.01094846,91337.0,91333.0,0.05701354]
[1767548820364,0.08757029,91338.0,91333.0,0.05701354]
[1767548820579,0.065691,91337.0,91333.0,0.0460646]
[1767548820780,0.05474368,91335.0,91333.0,0.0460646]
[1767548820954,0.06569193,91336.0,91333.0,0.0460646]
[1767548821154,0.01094858,91336.0,91333.0,0.0460646]
[1767548821585,0.06569084,91337.0,91333.0,0.0460646]
[1767548821783,0.01094858,91336.0,91333.0,0.0460646]
[1767548822757,0.06569157,91336.0,91333.0,0.0460646]
[1767548823196,0.01094858,91336.0,91333.0,0.0460646]
[1767548823397,0.06569084,91337.0,91333.0,0.0460646]
[1767548823575,0.01094846,91337.0,91333.0,0.0460646]
[1767548823908,0.06569092,91337.0,91333.0,0.0460646]
[1767548824293,0.01094846,91337.0,91333.0,0.05701354]
[1767548824822,0.06569097,91337.0,91333.0,0.0460646]
[1767548825145,0.08757009,91338.0,91333.0,0.11175819]
[1767548825279,0.08757009,91338.0,91334.0,0.06569293]
[1767548825280,0.02188,91338.0,91334.0,0.06569293]
[1767548825489,0.03282834,91338.0,91333.0,0.11175819]
[1767548825864,0.01094846,91337.0,91333.0,0.05701354]
[1767548826108,0.08757055,91338.0,91333.0,0.05701354]
[1767548826850,0.01094846,91337.0,91333.0,0.05701354]
[1767548827147,0.08757055,91338.0,91333.0,0.11175826]
[1767548827656,0.08757055,91338.0,91333.0,0.05701354]
[1767548828791,0.08757055,91338.0,91333.0,0.1117581]
[1767548829118,0.03282834,91338.0,91334.0,0.01094882]
[1767548829311,0.02188,91338.0,91334.0,0.06569289]
[1767548829952,0.02188,91338.0,91334.0,0.11386772]
[1767548830153,0.02188,91338.0,91335.0,0.04817483]
[1767548830789,0.08757008,91338.0,91333.0,0.11386833]
[1767548830953,0.06569083,91337.0,91333.0,0.04817483]
[1767548831151,0.02188,91338.0,91334.0,0.05912365]
[1767548831473,0.02188,91338.0,91335.0,0.0109487]
[1767548831729,0.00868912,91338.0,91336.0,0.04817483]
[1767548831936,0.00868912,91338.0,91334.0,0.06569294]
[1767548832061,0.01963746,91338.0,91334.0,0.01094882]
[1767548832268,0.02408305,91337.0,91334.0,0.01094882]
[1767548832461,0.02408305,91337.0,91334.0,0.06569292]
[1767548832672,0.00868912,91338.0,91335.0,0.0109487]
[1767548833093,0.00868912,91338.0,91335.0,0.06569179]
[1767548834113,0.00868912,91338.0,91335.0,0.0109487]
[1767548834314,0.00868912,91338.0,91335.0,0.0099497]
[1767548834650,0.00868912,91338.0,91335.0,0.06469299]
[1767548834841,0.00868912,91338.0,91335.0,0.0099497]
[1767548835483,0.00868912,91338.0,91334.0,0.11386775]
[1767548835755,0.00868912,91338.0,91334.0,0.05912365]
[1767548835944,0.00769012,91338.0,91335.0,0.11386658]
[1767548837036,0.00769012,91338.0,91336.0,0.04817483]
[1767548838481,0.02408305,91337.0,91335.0,0.0109487]
[1767548839263,0.02408305,91337.0,91336.0,0.05474292]
[1767548840281,0.00769012,91338.0,91337.0,0.04817483]
[1767548840489,0.000999,91337.0,91336.0,0.05474292]
[1767548840812,0.00769012,91338.0,91336.0,0.05474292]
[1767548841347,0.00769012,91338.0,91335.0,0.11386704]
[1767548842371,0.00769012,91338.0,91336.0,0.05474271]
[1767548843153,0.00769012,91338.0,91336.0,0.05465198]
[1767548844106,0.00769012,91338.0,91335.0,0.11386704]
[1767548844605,0.00769012,91338.0,91335.0,0.05912353]
[1767548845594,0.00769012,91338.0,91335.0,0.04817483]
[1767548847390,0.06568949,91339.0,91335.0,0.04817483]
[1767548848108,0.01094822,91339.0,91335.0,0.05912353]
[1767548848855,0.01094822,91339.0,91331.0,0.01094918]
[1767548849066,0.000999,91335.0,91333.0,0.04817483]
[1767548849239,0.000999,91335.0,91333.0,0.0481305]
[1767548849419,0.06569132,91337.0,91333.0,0.0481305]
[1767548849821,0.06569442,91332.0,91327.0,0.01094966]
[1767548850029,0.06569442,91332.0,91326.0,0.05912461]
[1767548850030,0.000999,91327.0,91326.0,0.04817483]
[1767548850389,0.06569709,91329.0,91326.0,0.04817483]
[1767548850867,0.01094942,91329.0,91326.0,0.04817483]
[1767548851066,0.01095026,91322.0,91319.0,0.00048362]
[1767548851403,0.01095038,91321.0,91317.0,0.04695457]
[1767548851606,0.01095038,91321.0,91317.0,4.334e-05]
[1767548851607,0.01494667,91321.0,91317.0,4.334e-05]
[1767548851893,0.06570159,91322.0,91317.0,0.0109942]
[1767548852047,0.06570286,91321.0,91317.0,4.334e-05]
[1767548852229,0.01095014,91323.0,91318.0,0.01095074]
[1767548852432,0.01095026,91322.0,91318.0,0.00995274]
[1767548852637,0.01095958,91322.0,91317.0,4.334e-05]
[1767548852832,0.01095014,91323.0,91322.0,0.01095037]
[1767548853069,0.06570102,91323.0,91322.0,0.01095037]
[1767548853914,0.01094942,91329.0,91323.0,0.000998]
[1767548854085,0.01094954,91328.0,91323.0,0.00095367]
[1767548854258,0.06569726,91328.0,91321.0,0.06570174]
[1767548854478,0.06569613,91330.0,91322.0,0.01095026]
[1767548854675,0.06569613,91330.0,91312.0,0.2190292]
[1767548854676,0.06569555,91331.0,91324.0,0.05474998]
[1767548854878,0.01094954,91328.0,91322.0,0.01095026]
[1767548855432,0.01094978,91326.0,91321.0,0.06570115]
[1767548855547,0.0109499,91325.0,91321.0,0.01095038]
[1767548855752,0.0099959,91325.0,91321.0,0.01095038]
[1767548856030,0.06569887,91326.0,91321.0,0.01095038]
[1767548856222,0.01094978,91326.0,91322.0,0.01095026]
[1767548856703,0.01094978,91326.0,91320.0,0.06570298]
[1767548857125,0.01094978,91326.0,91321.0,0.04532059]
[1767548857299,0.0656984,91327.0,91326.0,0.04532059]
[1767548859195,0.0656984,91327.0,91326.0,0.04432159]
[1767548860105,0.06570021,91324.0,91320.0,0.04532059]
[1767548860315,0.06570106,91323.0,91320.0,0.04532059]
[1767548860512,0.00995114,91323.0,91319.0,0.04532059]
[1767548861403,0.00995114,91323.0,91319.0,0.05627121]
[1767548861601,0.00995114,91323.0,91319.0,0.04532059]
[1767548861798,0.06570022,91324.0,91319.0,0.05627121]
[1767548862455,0.06570022,91324.0,91320.0,0.04532059]
[1767548863171,0.01194878,91322.0,91318.0,0.06570435]
[1767548863360,0.01095002,91324.0,91319.0,0.06570361]
[1767548863570,0.0109499,91325.0,91320.0,0.0109505]
[1767548863774,0.06569945,91325.0,91319.0,0.01095062]
[1767548863978,0.06570023,91324.0,91322.0,0.00059675]
[1767548864540,0.06569992,91325.0,91322.0,0.00059675]
[1767548865257,0.01194878,91324.0,91322.0,0.00059675]
[1767548866804,0.01194878,91324.0,91319.0,0.05475311]
[1767548866948,0.24090129,91333.0,91324.0,0.05474975]
[1767548867157,0.01094954,91328.0,91324.0,0.01095002]
[1767548867604,0.06569696,91330.0,91324.0,0.06569963]
[1767548867803,0.0109493,91330.0,91326.0,0.01094978]
[1767548868028,0.0109493,91330.0,91327.0,0.04532059]
[1767548868363,0.06569532,91331.0,91327.0,0.04532059]
[1767548870158,0.0109493,91330.0,91327.0,0.04532059]
[1767548870300,0.06569532,91331.0,91327.0,0.04432159]
[1767548870642,0.0109493,91330.0,91327.0,0.04432159]
[1767548872154,0.0108806,91330.0,91326.0,0.04532059]
[1767548872356,0.0108806,91330.0,91326.0,0.05627037]
[1767548872772,0.01094942,91329.0,91326.0,0.04532059]
[1767548873485,0.0108806,91330.0,91326.0,0.04532059]
[1767548873687,0.06569522,91331.0,91326.0,0.05627037]
[1767548874605,0.01094834,91338.0,91334.0,0.04532059]
[1767548874807,0.06569195,91336.0,91334.0,0.04532059]
[1767548875223,0.05474352,91335.0,91334.0,0.04532059]
[1767548875411,0.06569195,91336.0,91334.0,0.04532059]
[1767548875816,0.01094846,91337.0,91334.0,0.04532059]
[1767548876377,0.0656908,91337.0,91334.0,0.04532059]
[1767548876956,0.08761054,91339.0,91334.0,0.04532059]
[1767548877130,0.01094834,91338.0,91334.0,0.05626941]
[1767548877385,0.06569027,91338.0,91334.0,0.04532059]
[1767548878023,0.01094834,91338.0,91334.0,0.04532059]
[1767548878398,0.01094834,91338.0,91334.0,0.05626941]
[1767548878693,0.01094834,91338.0,91334.0,0.04532059]
[1767548879488,0.01094846,91337.0,91334.0,0.04532059]